bitfinex-derivatives/quotes_ETHF0:USTF0_20250410
["timestamp","ask_amount","ask_price","bid_price","bid_amount"]
[1744246111450,8.49e-06,1642.8,1642.7,7.29186849]
[1744246111650,8.49e-06,1642.8,1642.7,12.29186849]
[1744246112253,1.21784,1642.7,1642.6,4.30886328]
[1744246112452,1.21784,1642.7,1642.6,6.07403177]
[1744246113162,4.43344849,1642.7,1642.6,3.28e-06]
[1744246113554,9.43344849,1642.7,1642.6,3.28e-06]
[1744246113845,4.42564849,1642.7,1642.6,1.21792328]
[1744246114049,8.49e-06,1642.8,1642.7,1.21784]
[1744246114254,8.49e-06,1642.9,1642.8,1.21777]
[1744246114453,1.21770849,1642.9,1642.8,7.29179849]
[1744246114756,8.49e-06,1642.9,1642.8,7.29179849]
[1744246115254,1.21770849,1642.9,1642.8,7.29179849]
[1744246115454,8.49e-06,1642.9,1642.8,7.29179849]
[1744246115761,0.00915177,1643.0,1642.9,1.2177]
[1744246115958,1.22677177,1643.0,1642.9,7.29172849]
[1744246116363,1.22677177,1643.0,1642.9,6.07402849]
[1744246116664,1.22677177,1643.0,1642.9,7.29172849]
[1744246117058,0.00915177,1643.0,1642.9,7.29172849]
[1744246118164,6.25116,1643.4,1642.9,7.29172849]
[1744246118165,1.21739,1643.4,1643.3,1.2174]
[1744246118363,3.2078,1643.6,1643.5,1.21725]
[1744246118563,4.42489,1643.8,1643.7,1.2171]
[1744246118758,10.25889,1643.8,1643.7,1.2171]
[1744246119063,1.2174,1643.3,1643.2,3.061]
[1744246119260,5.834,1643.3,1643.0,1.21756]
[1744246119465,1.21756,1643.1,1643.0,1.22670328]
[1744246119964,1.21756,1643.1,1643.0,7.30073177]
[1744246120363,1.21755,1643.1,1643.0,7.30078177]
[1744246121865,3.2078,1643.2,1643.0,6.08317177]
[1744246122063,1.21755,1643.1,1643.0,7.30073177]
[1744246122462,1.21755,1643.1,1643.0,6.08317177]
[1744246122862,1.21755,1643.2,1643.0,6.08317177]
[1744246123067,9.0418,1643.3,1643.2,1.21747]
[1744246123270,10.2592,1643.3,1643.2,1.21747]
[1744246123467,7.0514,1643.3,1643.2,7.29149849]
[1744246124265,5.834,1643.3,1643.2,1.21747]
[1744246124461,5.834,1643.3,1643.1,1.21749]
[1744246124661,5.834,1643.4,1643.3,1.2174]
[1744246124864,5.834,1643.4,1643.2,10.65926849]
[1744246125065,1.2174,1643.3,1643.2,10.65926849]
[1744246125466,1.2174,1643.3,1643.2,9.44182849]
[1744246125764,1.2174,1643.3,1643.2,3.3409]
[1744246126072,7.0514,1643.3,1643.2,3.3409]
[1744246127173,7.2865,1643.3,1643.2,3.3409]
[1744246128674,7.2865,1643.3,1643.0,0.00914328]
[1744246128675,1.21755,1643.1,1643.0,0.00914328]
[1744246128866,4.42535,1643.1,1643.0,0.00914328]
[1744246129064,9.42535,1643.1,1643.0,0.00914328]
[1744246129273,15.25935,1643.1,1643.0,0.00914328]
[1744246131376,15.25935,1643.1,1643.0,3.28e-06]
[1744246132576,1.21807,1642.4,1642.3,228.40946556]
[1744246132764,10.25986672,1642.4,1642.3,228.40946556]
[1744246132964,5.83399672,1642.4,1642.3,229.62760556]
[1744246133176,0.73229672,1642.4,1642.3,240.70163405]
[1744246133377,0.73229672,1642.6,1642.5,1.21799]
[1744246133770,0.73229672,1642.6,1642.5,7.29201849]
[1744246133970,0.73229672,1642.6,1642.5,10.51261849]
[1744246134166,0.73229672,1642.6,1642.5,15.51261849]
[1744246134678,1.95021672,1642.6,1642.5,15.51261849]
[1744246134878,1.95021672,1642.6,1642.5,10.51261849]
[1744246136283,1.21792,1642.6,1642.5,10.51261849]
[1744246136878,1.21792,1642.6,1642.5,9.29462849]
[1744246137080,1.21792,1642.6,1642.5,10.51261849]
[1744246137669,1.21792,1642.6,1642.5,9.29462849]
[1744246137873,1.21792,1642.6,1642.5,3.2206]
[1744246137874,4.42572,1642.6,1642.5,3.2206]
[1744246138577,4.42572,1642.6,1642.5,9.29462849]
[1744246139884,4.42572,1642.6,1642.5,3.2206]
[1744246140382,4.42572,1642.6,1642.5,10.51261849]
[1744246140383,1.21792,1642.6,1642.5,10.51261849]
[1744246140685,1.21792,1642.6,1642.5,9.29462849]
[1744246140983,4.42572,1642.6,1642.5,3.2206]
[1744246141181,4.66012,1642.6,1642.5,3.2206]
[1744246141383,1.21807,1642.4,1642.3,221.82896556]
[1744246141585,4.42587,1642.4,1642.3,221.82896556]
[1744246142485,10.15816672,1642.4,1642.3,221.82896556]
[1744246143489,10.61094192,1642.4,1642.3,221.82896556]
[1744246143977,5.15816672,1642.4,1642.3,221.82896556]
[1744246144171,5.15816672,1642.4,1642.3,225.05286556]
[1744246144570,1.95036672,1642.4,1642.3,225.05286556]
[1744246145382,1.95036672,1642.4,1642.3,226.27100556]
[1744246145683,1.95036672,1642.4,1642.3,231.12689405]
[1744246145880,5.15816672,1642.4,1642.3,225.05286556]
[1744246146285,1.95036672,1642.4,1642.3,225.05286556]
[1744246146487,1.95036672,1642.4,1642.3,237.34503405]
[1744246146782,1.95036672,1642.4,1642.3,225.05286556]
[1744246146986,5.15816672,1642.4,1642.3,225.05286556]
[1744246147379,10.04016672,1642.4,1642.3,225.05286556]
[1744246147587,15.04016672,1642.4,1642.3,221.82896556]
[1744246148586,10.04016672,1642.4,1642.3,221.82896556]
[1744246148886,1.95036672,1642.4,1642.3,225.16296556]
[1744246149787,6.70936672,1642.4,1642.3,225.16296556]
[1744246150088,6.94356672,1642.4,1642.3,225.16296556]
[1744246150289,11.94356672,1642.4,1642.3,225.16296556]
[1744246150479,11.94356672,1642.4,1642.3,221.82896556]
[1744246152583,11.21127,1642.4,1642.3,177.05238995]
[1744246152787,11.21127,1642.4,1642.3,161.21809803]
[1744246152993,11.21127,1642.4,1642.3,158.17212207]
[1744246153182,11.21127,1642.4,1642.3,155.12614611]
[1744246153486,11.21127,1642.4,1642.3,82.21371666]
[1744246153687,11.21127,1642.4,1642.3,70.6424507]
[1744246153884,14.41907,1642.4,1642.3,63.76617474]
[1744246154089,14.41907,1642.4,1642.3,47.5308523]
[1744246154292,14.87391035,1642.4,1642.3,35.73531038]
[1744246154477,1.21814,1642.3,1642.2,4.14e-06]
[1744246154680,1.21866,1641.6,1641.5,3.1639]
[1744246154986,5.97866,1641.6,1641.5,3.1639]
[1744246159890,11.81266,1641.6,1641.5,3.1639]
[1744246161178,1.21873,1641.5,1641.4,3.28e-06]
[1744246161383,4.65743,1641.5,1641.4,3.28e-06]
[1744246161603,15.49143,1641.5,1641.4,3.28e-06]
[1744246162398,1.21956,1640.4,1640.1,20.50918109]
[1744246162694,3.04853,1640.6,1640.2,19.81767849]
[1744246162890,1.21963,1640.3,1640.2,19.81767849]
[1744246163084,1.21963,1640.3,1640.2,7.65485]
[1744246163280,1.21963,1640.3,1640.2,23.59802849]
[1744246163487,1.21963,1640.3,1640.2,18.59802849]
[1744246163787,1.2197,1640.2,1640.1,14.25817245]
[1744246163993,1.2197,1640.2,1640.1,27.64075094]
[1744246164288,1.2197,1640.2,1640.1,26.42100094]
[1744246164487,7.05369672,1640.2,1640.1,29.66980094]
[1744246164694,15.02349672,1640.2,1640.1,29.66980094]
[1744246165383,15.02349672,1640.2,1640.1,17.50697245]
[1744246165785,15.02349672,1640.2,1640.1,29.66980094]
[1744246165995,15.02349672,1640.2,1640.1,15.41771985]
[1744246166292,11.81569672,1640.2,1640.1,15.41771985]
[1744246166693,15.02349672,1640.2,1640.1,15.41771985]
[1744246167294,11.81569672,1640.2,1640.1,15.41771985]
[1744246168595,1.2197,1640.2,1640.1,20.41771985]
[1744246169594,1.2197,1640.2,1640.1,15.41771985]
[1744246169992,10.26149672,1640.2,1640.1,15.41771985]
[1744246170599,7.05369672,1640.2,1640.1,15.41771985]
[1744246171802,10.26149672,1640.2,1640.1,15.41771985]
[1744246172693,7.05369672,1640.2,1640.1,15.41771985]
[1744246173099,10.26149672,1640.2,1640.1,15.41771985]
[1744246173398,7.05369672,1640.2,1640.1,20.41771985]
[1744246173596,5.83399672,1640.2,1640.1,21.63748985]
[1744246173794,1.21963,1640.3,1640.2,1.21964]
[1744246174097,4.77314328,1640.4,1640.2,16.52616849]
[1744246174294,4.77314328,1640.4,1640.3,16.74015849]
[1744246174496,5.99269328,1640.4,1640.3,15.52052849]
[1744246174801,4.77314328,1640.4,1640.3,16.74015849]
[1744246175001,0.00914328,1640.4,1640.3,24.94795849]
[1744246175399,1.21954,1640.5,1640.3,24.94795849]
[1744246175702,1.21954,1640.5,1640.4,12.16282849]
[1744246175999,7.05343672,1640.6,1640.4,12.16282849]
[1744246176197,7.05339672,1640.6,1640.5,13.38230849]
[1744246176397,1.21937,1640.7,1640.6,1.21937]
[1744246176599,1.22851328,1640.7,1640.6,13.38219849]
[1744246177209,1.22851328,1640.7,1640.6,16.72009849]
[1744246178509,1.22851328,1640.7,1640.6,16.72012849]
[1744246179209,1.22851328,1640.7,1640.6,15.50072849]
[1744246179801,1.22851328,1640.7,1640.6,18.75772849]
[1744246180110,10.27031,1640.7,1640.6,15.41982849]
[1744246182503,1.21955,1640.4,1640.3,6.6245]
[1744246183005,1.21955,1640.4,1640.3,18.78732849]
[1744246184001,1.47798598,1640.4,1640.3,18.78732849]
[1744246184207,1.47798598,1640.4,1640.3,20.00695849]
[1744246184413,1.21963,1640.3,1640.2,3.1687]
[1744246184708,1.2197,1640.2,1640.1,0.00609136]
[1744246184913,14.93349672,1640.2,1640.1,12.16891985]
[1744246185211,11.9841327,1640.2,1640.1,12.16891985]
[1744246185411,7.3121327,1640.2,1640.1,17.16891985]
[1744246185615,7.3121327,1640.2,1640.1,12.16891985]
[1744246185813,7.3121327,1640.2,1640.1,15.55961985]
[1744246186118,6.0924327,1640.2,1640.1,16.77938985]
[1744246186307,7.3121327,1640.2,1640.1,16.77938985]
[1744246186507,7.3121327,1640.2,1640.1,15.55961985]
[1744246187117,7.3121327,1640.2,1640.1,18.76741985]
[1744246187308,6.0924327,1640.2,1640.1,19.98718985]
[1744246187624,7.3121327,1640.2,1640.1,19.98718985]
[1744246187916,7.3121327,1640.2,1640.1,18.76741985]
[1744246188320,7.3121327,1640.2,1640.1,15.55961985]
[1744246189814,1.47813598,1640.2,1640.1,15.55961985]
[1744246190012,4.68593598,1640.2,1640.1,15.55961985]
[1744246190318,1.47813598,1640.2,1640.1,15.55961985]
[1744246191519,1.47813598,1640.2,1640.1,18.76741985]
[1744246191819,1.5610485,1640.2,1640.1,15.55961985]
[1744246193225,4.7688485,1640.2,1640.1,15.55961985]
[1744246193424,10.60284522,1640.2,1640.1,12.16891985]
[1744246193619,18.22034522,1640.2,1640.1,12.16891985]
[1744246193924,23.22034522,1640.2,1640.1,1.36e-06]
[1744246194816,18.22034522,1640.2,1640.1,1.36e-06]
[1744246195015,12.06704522,1640.2,1640.1,12.16282985]
[1744246195416,0.3413485,1640.2,1640.1,16.59039985]
[1744246195617,0.3413485,1640.2,1640.1,21.59039985]
[1744246197131,1.5610485,1640.2,1640.1,21.59039985]
[1744246197319,1.5610485,1640.2,1640.1,12.16282985]
[1744246197515,1.5610485,1640.2,1640.1,13.38259985]
[1744246197715,0.3413485,1640.2,1640.1,13.38259985]
[1744246198319,0.3413485,1640.2,1640.1,21.59039985]
[1744246198523,1.21957,1640.4,1640.3,1.21963]
[1744246198919,1.21957,1640.4,1640.3,18.38245849]
[1744246199219,1.30248252,1640.4,1640.3,12.16282849]
[1744246200517,18.79670924,1640.4,1640.1,1.36e-06]
[1744246200719,1.2197,1640.2,1640.1,12.16282985]
[1744246201225,1.30261252,1640.2,1640.1,12.16282985]
[1744246202026,7.13660924,1640.2,1640.1,12.16282985]
[1744246202221,15.34440924,1640.2,1640.1,1.36e-06]
[1744246202526,1.22015,1639.6,1639.2,3.288]
[1744246202716,1.22022,1639.5,1639.4,3.1951]
[1744246203125,4.42802,1639.5,1639.4,15.35792849]
[1744246203324,4.51093252,1639.5,1639.4,15.35792849]
[1744246203527,1.30313252,1639.5,1639.4,15.35792849]
[1744246203719,0.08291252,1639.5,1639.4,16.57822849]
[1744246203920,0.08291252,1639.5,1639.4,24.78602849]
[1744246204120,5.83399672,1640.2,1639.5,15.20424521]
[1744246204320,1.21988,1640.0,1639.9,4.42772]
[1744246204528,1.21988,1640.0,1639.9,3.2078]
[1744246204726,1.21988,1640.0,1639.9,15.36148521]
[1744246204926,1.21998,1639.9,1639.7,3.2061]
[1744246205229,3.2078,1640.0,1639.8,13.37368521]
[1744246205422,1.22904328,1640.0,1639.8,13.37368521]
[1744246205624,1.22904328,1640.0,1639.9,12.15368521]
[1744246206029,0.00914328,1640.0,1639.9,13.37360521]
[1744246206229,1.22899328,1640.0,1639.9,13.37360521]
[1744246206531,1.3119058,1640.0,1639.9,13.37360521]
[1744246206728,1.3119058,1640.0,1639.9,12.15368521]
[1744246210934,3.04983,1639.9,1639.5,4.42801]
[1744246211232,1.2203,1639.4,1639.3,0.00914328]
[1744246211627,1.30321252,1639.4,1639.3,12.16282849]
[1744246212933,0.08291252,1639.4,1639.3,13.38319849]
[1744246215334,0.08291252,1639.4,1639.3,21.59099849]
[1744246215828,0.08291252,1639.4,1639.3,25.00419849]
[1744246216030,0.08291252,1639.4,1639.2,26.70618109]
[1744246216031,1.22037,1639.3,1639.2,13.00981109]
[1744246216335,7.38027,1639.3,1639.2,13.00981109]
[1744246216528,15.52337,1639.3,1639.2,13.00981109]
[1744246216733,15.60628252,1639.3,1639.2,13.00981109]
[1744246217335,15.68919504,1639.3,1639.2,13.00981109]
[1744246217732,4.59399504,1639.3,1639.2,23.77152958]
[1744246218132,4.59399504,1639.3,1639.2,13.00981109]
[1744246218133,15.42799176,1639.3,1639.2,13.00981109]
[1744246218329,15.42799176,1639.3,1639.1,0.00914328]
[1744246218330,1.22044,1639.2,1639.1,0.00914328]
[1744246218520,4.17574,1639.2,1639.1,0.00914328]
[1744246219331,4.34156504,1639.2,1639.1,0.00914328]
[1744246219730,9.34156504,1639.2,1639.1,0.00914328]
[1744246220029,4.34156504,1639.2,1639.1,0.00914328]
[1744246220231,1.38626504,1639.2,1639.1,0.00914328]
[1744246223527,4.34236504,1639.2,1639.1,0.00914328]
[1744246224435,10.17636176,1639.2,1639.1,3.28e-06]
[1744246224735,10.20960052,1639.2,1639.1,3.28e-06]
[1744246228332,1.22074,1638.8,1638.7,3.4616]
[1744246228530,7.8728,1638.9,1638.1,9.2038]
[1744246228835,1.22109,1638.4,1638.3,1.22111]
[1744246229042,1.22109,1638.4,1638.2,21.89884849]
[1744246229237,1.22109,1638.4,1638.3,10.76171849]
[1744246229633,1.22109,1638.4,1638.3,11.98282849]
[1744246229832,1.4201538,1638.4,1638.3,11.98282849]
[1744246230033,1.4201538,1638.4,1638.3,10.76171849]
[1744246231040,10.46195052,1638.4,1638.3,10.76171849]
[1744246231230,7.25415052,1638.4,1638.3,10.76171849]
[1744246231436,7.25415052,1638.4,1638.3,11.98282849]
[1744246231735,7.25415052,1638.4,1638.3,10.76171849]
[1744246232245,7.25415052,1638.4,1638.3,11.98282849]
[1744246232744,7.25415052,1638.4,1638.3,10.76171849]
[1744246233135,0.1990638,1638.4,1638.3,11.98282849]
[1744246233333,0.1990638,1638.4,1638.3,16.98282849]
[1744246233729,5.83399672,1638.8,1638.4,1.22104]
[1744246233934,1.22069,1638.9,1638.7,3.2078]
[1744246234130,1.22069,1638.9,1638.8,3.3506]
[1744246234436,4.42849,1638.9,1638.8,3.3506]
[1744246234636,4.42849,1638.9,1638.8,14.10317521]
[1744246235242,1.22069,1638.9,1638.8,14.10317521]
[1744246235647,1.22069,1638.9,1638.8,15.32391521]
[1744246235943,5.89576328,1639.0,1638.8,15.32384521]
[1744246236246,0.00914328,1639.0,1638.9,15.32384521]
[1744246236444,1.22973328,1639.0,1638.9,10.75257521]
[1744246236646,1.22073,1638.9,1638.8,3.4471]
[1744246236837,1.22073,1638.9,1638.8,14.19967521]
[1744246237236,7.05472672,1638.9,1638.8,8.43285521]
[1744246237543,1.22097,1638.5,1638.4,3.4471]
[1744246237949,1.22097,1638.5,1638.4,11.87995521]
[1744246238250,1.22093,1638.6,1638.4,16.30874521]
[1744246238447,1.22093,1638.6,1638.5,8.43285521]
[1744246238647,1.22093,1638.6,1638.5,15.20395521]
[1744246239444,0.00914328,1639.0,1638.6,1.22084]
[1744246239648,4.42854,1638.8,1638.7,3.3565]
[1744246239844,4.42854,1638.8,1638.7,11.78935521]
[1744246240346,4.42854,1638.8,1638.7,8.43285521]
[1744246240548,0.00914328,1639.0,1638.7,16.48487521]
[1744246240743,7.9328,1639.5,1638.9,1.22067]
[1744246240949,1.22037,1639.3,1639.2,3.2078]
[1744246241448,1.22037,1639.3,1639.2,11.64065521]
[1744246241647,1.22037,1639.3,1639.2,14.99715521]
[1744246241840,3.2078,1639.5,1639.2,14.99715521]
[1744246242050,1.22027,1639.5,1639.3,9.65319521]
[1744246242252,1.22941328,1639.5,1639.4,3.3565]
[1744246242549,0.00914328,1639.5,1639.4,13.00965521]
[1744246242850,1.22936328,1639.5,1639.4,11.78935521]
[1744246244343,1.22936328,1639.5,1639.1,0.00914328]
[1744246244344,1.22044,1639.2,1639.1,0.00914328]
[1744246244539,1.22044,1639.2,1639.1,8.44199849]
[1744246244744,6.22044,1639.2,1639.1,0.00914328]
[1744246245648,9.60284,1639.2,1639.1,0.00914328]
[1744246246346,4.60284,1639.2,1639.1,0.00914328]
[1744246249449,1.22044,1639.2,1639.1,8.44199849]
[1744246250248,10.55799672,1639.3,1639.1,8.44199849]
[1744246250249,4.724,1639.3,1639.1,8.44199849]
[1744246250553,5.94437,1639.3,1639.2,11.74115521]
[1744246252855,1.22037,1639.3,1639.2,11.74115521]
[1744246253550,1.22037,1639.3,1639.2,3.3083]
[1744246253756,1.22044,1639.2,1639.1,0.00914328]
[1744246254056,9.50434,1639.2,1639.1,0.00914328]
[1744246254555,1.22044,1639.2,1639.1,8.44199849]
[1744246255052,1.22044,1639.2,1639.1,11.91509849]
[1744246255356,4.42824,1639.2,1639.1,11.91509849]
[1744246255657,4.42824,1639.2,1639.1,0.00914328]
[1744246255853,7.75794,1639.2,1639.1,0.00914328]
[1744246256150,18.59193672,1639.2,1639.1,0.00914328]
[1744246256357,21.96583672,1639.2,1639.1,0.00914328]
[1744246257054,10.26223672,1639.2,1639.1,8.44199849]
[1744246257655,10.26223672,1639.2,1639.1,0.00914328]
[1744246258251,13.73523672,1639.2,1639.1,0.00914328]
[1744246260457,10.26223672,1639.2,1639.1,8.44199849]
[1744246261357,13.79253672,1639.2,1639.1,3.43324328]
[1744246261749,3.05138,1639.1,1638.3,1.2211]
[1744246261959,1.22097,1638.5,1638.4,8.43285521]
[1744246262256,1.22097,1638.5,1638.2,7.1742]
[1744246262257,1.22111,1638.3,1638.2,7.1742]
[1744246262460,1.2211,1638.4,1638.3,8.43285521]
[1744246262660,7.9318,1638.7,1638.3,11.64065521]
[1744246262966,0.00914328,1638.5,1638.4,9.65389521]
[1744246263156,0.00914328,1638.5,1638.4,12.86169521]
[1744246263355,0.00914328,1638.5,1638.4,17.86169521]
[1744246263664,1.2208,1638.8,1638.6,1.22085]
[1744246263859,1.2208,1638.8,1638.7,3.5457]
[1744246264158,1.2208,1638.8,1638.7,10.75776521]
[1744246264860,1.2208,1638.8,1638.7,18.96556521]
[1744246265265,1.2208,1638.8,1638.7,23.83678521]
[1744246265454,1.2208,1638.8,1638.7,22.61596521]
[1744246265764,1.22984328,1638.9,1638.7,23.83678521]
[1744246265960,0.00914328,1638.9,1638.8,12.08320521]
[1744246266164,1.22046,1639.2,1639.0,1.22052]
[1744246266364,1.22044,1639.2,1639.1,3.323]
[1744246266961,1.22044,1639.2,1639.1,10.53506521]
[1744246268956,9.04138155,1639.3,1639.1,11.75555521]
[1744246269249,9.04138155,1639.3,1639.2,10.81636521]
[1744246269454,7.82097155,1639.3,1639.2,15.66440521]
[1744246269650,4.61317155,1639.3,1639.2,23.87220521]
[1744246269853,6.93626556,1639.5,1639.4,1.2203]
[1744246270063,6.93626556,1639.5,1639.4,4.4281]
[1744246270260,6.93626556,1639.5,1639.4,11.64016521]
[1744246270461,6.93626556,1639.5,1639.4,15.21336521]
[1744246270665,11.46181714,1639.8,1639.5,1.22022]
[1744246270970,11.47096042,1639.8,1639.7,4.42787]
[1744246271258,14.98314102,1640.2,1640.1,1.21977]
[1744246271466,1.21977,1640.1,1640.0,4.42762]
[1744246271763,13.76339102,1640.2,1640.1,1.21977]
[1744246272270,1.21985,1640.0,1639.9,7.2159]
[1744246272749,1.2197,1640.2,1639.9,10.996]
[1744246272956,1.2197,1640.2,1640.0,3.2078]
[1744246273157,1.2197,1640.2,1640.1,1.21977]
[1744246273355,1.21977,1640.1,1640.0,4.42759]
[1744246273560,1.21977,1640.1,1640.0,3.2078]
[1744246273758,1.21985,1640.0,1639.9,7.21588]
[1744246274159,1.21985,1640.0,1639.9,12.21588]
[1744246274457,1.21985,1640.0,1639.9,7.21588]
[1744246274762,1.21981,1640.1,1640.0,1.21983]
[1744246274953,1.21972,1640.2,1640.0,4.50113]
[1744246275153,1.21972,1640.2,1640.1,3.2813]
[1744246275757,3.49524328,1640.3,1639.9,10.55657]
[1744246275758,6.70304328,1640.3,1639.9,9.3367]
[1744246275960,1.21985,1640.0,1639.9,12.618]
[1744246276164,1.21985,1640.0,1639.9,6.622]
[1744246276857,1.21985,1640.0,1639.9,3.2813]
[1744246277160,1.21976,1640.2,1640.0,1.21985]
[1744246277361,4.71596,1640.2,1640.0,1.21985]
[1744246277664,4.71596,1640.2,1640.1,3.5432]
[1744246279164,1.21988,1640.0,1639.8,8.03493]
[1744246279364,1.21988,1640.0,1639.9,3.5809]
[1744246279861,4.83848,1640.0,1639.9,3.5809]
[1744246280164,1.21992,1639.9,1639.8,3.6072]
[1744246280362,4.83852,1639.9,1639.8,7.1881]
[1744246280661,4.83852,1639.9,1639.8,3.5809]
[1744246280865,3.6186,1639.9,1639.8,4.8009]
[1744246281055,4.665,1640.2,1639.9,1.21989]
[1744246281256,1.21993,1639.9,1639.7,12.7032]
[1744246281453,3.6186,1640.0,1639.7,7.0803]
[1744246281766,3.6186,1640.0,1639.8,1.21998]
[1744246282057,4.83848,1640.0,1639.8,4.8009]
[1744246282257,1.21984,1640.1,1639.9,1.21992]
[1744246282458,1.21984,1640.1,1640.0,3.5886]
[1744246282659,11.4453,1640.2,1640.0,3.5886]
[1744246282860,1.21977,1640.1,1640.0,3.5886]
[1744246283060,0.00914328,1640.3,1640.0,3.5886]
[1744246283254,1.21977,1640.1,1640.0,3.5886]
[1744246283453,1.21976,1640.2,1640.0,3.5886]
[1744246283661,1.21974,1640.2,1640.1,4.42757]
[1744246283859,1.21974,1640.2,1640.1,3.2078]
[1744246284168,1.22880328,1640.3,1640.1,3.2078]
[1744246284364,0.00914328,1640.3,1640.2,3.5886]
[1744246284565,0.00914328,1640.3,1639.9,12.58479]
[1744246284566,3.05823328,1640.3,1639.9,9.535]
[1744246284865,1.22881328,1640.3,1640.1,4.42757]
[1744246285062,1.22881328,1640.3,1640.2,3.5886]
[1744246285263,0.00914328,1640.3,1640.2,3.5886]
[1744246285467,0.00914328,1640.3,1640.2,10.8043]
[1744246287165,0.00914328,1640.3,1640.2,20.4683]
[1744246287360,0.00914328,1640.3,1640.2,14.2486]
[1744246287561,1.22877328,1640.3,1640.2,5.996]
[1744246287773,1.21985,1640.0,1639.9,3.539]
[1744246287966,1.22,1639.8,1639.7,3.3677]
[1744246288270,1.22,1639.8,1639.7,6.8779]
[1744246288465,6.9754,1640.1,1639.7,6.8779]
[1744246288665,1.21987,1640.0,1639.8,4.50483]
[1744246288867,1.21987,1640.0,1639.9,3.2849]
[1744246289072,1.21999,1639.9,1639.7,11.16752]
[1744246289273,4.80293,1640.1,1639.9,1.21991]
[1744246289473,4.80293,1640.1,1640.0,3.2849]
[1744246289668,0.00914328,1640.3,1640.2,1.2197]
[1744246289967,0.00914328,1640.3,1640.2,4.4275]
[1744246290172,0.00914328,1640.3,1640.2,9.4275]
[1744246290371,0.00914328,1640.3,1640.2,12.7124]
[1744246293364,0.00914328,1640.3,1640.2,7.7124]
[1744246293977,0.00914328,1640.3,1640.2,12.7124]
[1744246294780,0.00914328,1640.3,1640.2,13.7084]
[1744246295879,3.28e-06,1640.3,1640.2,18.7084]
[1744246305189,6.8252,1641.1,1641.0,1.21911]
[1744246305485,6.8252,1641.1,1641.0,4.42691]
[1744246305685,3.4972,1641.1,1641.0,4.42691]
[1744246305891,3.7857,1641.4,1641.3,1.21881]
[1744246306585,3.7857,1641.4,1641.3,5.36221]
[1744246306897,3.7857,1641.4,1641.3,1.21881]
[1744246307082,7.9453,1641.4,1641.3,1.21881]
[1744246308297,3.38364328,1641.5,1641.4,1.21881]
[1744246308483,0.00914328,1641.5,1641.4,4.42661]
[1744246308685,0.00914328,1641.5,1641.4,8.57001]
[1744246309288,5.00914328,1641.5,1641.3,7.21482]
[1744246309483,4.1596,1641.4,1641.3,7.21482]
[1744246309683,1.21888,1641.3,1641.2,1.22806328]
[1744246309893,5.20698,1641.3,1641.2,1.22806328]
[1744246310091,14.07058,1641.3,1641.2,1.22806328]
[1744246310297,14.07058,1641.3,1641.2,0.00914328]
[1744246310590,7.8517,1641.3,1641.2,4.43590328]
[1744246310987,3.8636,1641.3,1641.2,4.43590328]
[1744246311185,3.99724328,1641.5,1641.2,9.21294328]
[1744246311389,7.86084328,1641.5,1641.4,4.42661]
[1744246311894,7.86084328,1641.5,1641.4,1.21881]
[1744246312192,9.07957328,1641.5,1641.4,1.21881]
[1744246312498,7.86084328,1641.5,1641.4,1.21881]
[1744246312703,9.07957328,1641.5,1641.4,1.21881]
[1744246312992,0.00914328,1641.5,1641.4,4.42661]
[1744246313388,4.13134328,1641.5,1641.4,4.42661]
[1744246313589,5.35007328,1641.5,1641.4,1.21881]
[1744246314798,5.35007328,1641.5,1641.4,4.42661]
[1744246316095,10.35007328,1641.5,1641.4,4.42661]
[1744246316489,10.35007328,1641.5,1641.4,3.2078]
[1744246316697,1.21888,1641.3,1641.2,6.00514328]
[1744246317098,6.21888,1641.3,1641.2,6.00514328]
[1744246317298,13.22228,1641.3,1641.2,0.00914328]
[1744246317487,1.21911,1641.0,1640.9,1.21913]
[1744246318092,4.99729,1641.1,1641.0,1.21911]
[1744246318292,3.7782,1641.1,1641.0,1.21911]
[1744246318506,9.99723,1641.1,1641.0,1.21911]
[1744246318799,9.99723,1641.1,1640.9,1.22825328]
[1744246319006,4.1019,1641.0,1640.9,1.22832328]
[1744246319197,4.1019,1641.0,1640.9,4.43612328]
[1744246319899,4.1019,1641.0,1640.9,8.59382328]
[1744246320500,4.1831,1641.2,1641.1,1.21903]
[1744246320703,8.285,1641.2,1641.1,4.42683]
[1744246321705,8.285,1641.2,1641.1,8.58453]
[1744246322708,8.285,1641.2,1641.1,4.42683]
[1744246323005,9.50396,1641.2,1641.1,4.42683]
[1744246323897,8.285,1641.2,1641.1,4.42683]
[1744246324608,4.1019,1641.2,1641.1,4.42683]
[1744246324803,4.1019,1641.2,1641.1,8.37933]
[1744246325019,8.0738,1641.4,1641.3,1.21888]
[1744246325307,4.1006,1641.4,1641.3,15.08168]
[1744246327399,0.00914328,1641.5,1641.4,1.21881]
[1744246327703,4.10974328,1641.5,1641.4,5.17131]
[1744246328002,0.00914328,1641.5,1641.4,11.16731]
[1744246328202,0.00914328,1641.5,1641.4,16.16731]
[1744246328408,0.00914328,1641.5,1641.4,15.28241]
[1744246329206,0.00914328,1641.5,1641.4,20.28241]
[1744246329509,3.28e-06,1641.5,1641.4,20.28241]
[1744246330012,3.28e-06,1641.5,1641.4,15.28241]
[1744246333602,4.42599,1642.3,1641.9,3.04593]
[1744246333803,1.2181,1642.4,1642.3,1.21814]
[1744246334312,6.2181,1642.4,1642.3,1.21814]
[1744246334804,6.2181,1642.4,1642.2,0.00914328]
[1744246334805,1.21814,1642.3,1642.2,0.00914328]
[1744246335011,5.33844,1642.3,1642.2,0.00914328]
[1744246335210,10.33844,1642.3,1642.2,0.00914328]
[1744246335602,19.38023672,1642.3,1642.2,0.00914328]
[1744246335808,3.04558,1642.2,1641.8,3.04621]
[1744246336009,1.21838,1642.0,1641.9,1.21837]
[1744246336209,9.15395,1642.1,1642.0,1.21836]
[1744246336613,14.15395,1642.1,1642.0,1.21836]
[1744246337017,9.15395,1642.1,1642.0,1.21836]
[1744246337214,1.21836,1642.0,1641.9,1.22752328]
[1744246337407,9.13126,1642.0,1641.9,1.22752328]
[1744246337713,7.9129,1642.0,1641.9,1.22752328]
[1744246338320,7.9129,1642.0,1641.9,5.21162328]
[1744246338518,3.8983,1642.0,1641.9,5.21162328]
[1744246340119,3.8153,1642.1,1642.0,1.21836]
[1744246340309,3.9947,1642.2,1642.1,1.21829]
[1744246340510,6.93748551,1642.9,1642.8,1.21773]
[1744246340711,10.78928551,1642.9,1642.6,3.2078]